bitfinex/quotes_BTCUSD_20251226
["timestamp","ask_amount","ask_price","bid_price","bid_amount"]
[1766785565956,0.07093,87601.0,87583.0,0.01141774]
[1766785568563,0.08234539,87601.0,87581.0,0.085278]
[1766785568758,0.07093,87599.0,87581.0,0.085278]
[1766785569151,0.07093,87599.0,87582.0,0.01141787]
[1766785569354,0.07093,87597.0,87583.0,0.01141774]
[1766785569937,0.07093,87597.0,87582.0,0.01141787]
[1766785570725,0.07093,87597.0,87581.0,0.085278]
[1766785571005,0.07093,87597.0,87582.0,0.01141787]
[1766785571482,0.07093,87597.0,87581.0,0.03269587]
[1766785571694,0.07093,87597.0,87582.0,0.01141787]
[1766785574719,0.06782,87596.0,87582.0,0.01141787]
[1766785574915,0.06782,87596.0,87583.0,0.07348]
[1766785575091,0.06782,87596.0,87583.0,0.08489774]
[1766785575596,0.06782,87596.0,87584.0,0.01141761]
[1766785575778,0.06782,87596.0,87585.0,0.01141748]
[1766785576156,0.06782,87596.0,87584.0,0.01141761]
[1766785576375,0.08093425,87596.0,87584.0,0.01141761]
[1766785577821,0.08093425,87596.0,87586.0,0.01141734]
[1766785578026,0.08093425,87596.0,87587.0,0.01141721]
[1766785578199,0.08093425,87596.0,87586.0,0.01141734]
[1766785578566,0.06782,87596.0,87585.0,0.02492182]
[1766785578780,0.06782,87596.0,87585.0,0.01141748]
[1766785578982,0.06782,87596.0,87586.0,0.01141734]
[1766785580430,0.06782,87596.0,87587.0,0.01141721]
[1766785581801,0.06782,87596.0,87586.0,0.01141734]
[1766785581974,0.07575172,87596.0,87587.0,0.01141721]
[1766785582415,0.07575172,87596.0,87588.0,0.01141708]
[1766785582986,0.07575172,87596.0,87587.0,0.01141721]
[1766785584350,0.07575172,87596.0,87588.0,0.01141708]
[1766785584551,0.01149715,87603.0,87590.0,0.07348]
[1766785585565,0.01149715,87603.0,87590.0,0.03448]
[1766785585794,0.07931715,87603.0,87590.0,0.49413305]
[1766785585966,0.07931715,87603.0,87590.0,0.48271623]
[1766785586575,0.07931715,87603.0,87591.0,0.0125021]
[1766785586814,0.07931715,87603.0,87591.0,0.00108541]
[1766785588530,0.07931715,87603.0,87591.0,0.0125021]
[1766785589294,0.07931715,87603.0,87591.0,0.00108541]
[1766785592239,0.07931715,87603.0,87590.0,0.49413305]
[1766785592574,0.07931715,87603.0,87591.0,0.00108541]
[1766785592777,0.07931715,87603.0,87590.0,0.43121846]
[1766785593456,0.01149715,87603.0,87594.0,0.05843]
[1766785593858,5.715e-05,87603.0,87594.0,0.05843]
[1766785594382,5.715e-05,87603.0,87595.0,0.01141617]
[1766785594523,0.01144,87608.0,87601.0,0.01141539]
[1766785594731,0.01144,87608.0,87599.0,0.05837]
[1766785595076,0.01144,87608.0,87599.0,0.06978565]
[1766785595283,0.01144,87608.0,87599.0,0.05837]
[1766785595626,0.01144,87608.0,87600.0,0.01141552]
[1766785596076,0.01144,87608.0,87599.0,0.05837]
[1766785597292,0.01144,87608.0,87599.0,0.06978565]
[1766785597498,0.01144,87608.0,87599.0,0.05837]
[1766785599496,0.06802,87615.0,87602.0,0.01141526]
[1766785599700,0.01144,87614.0,87602.0,0.01141526]
[1766785600021,0.07926,87614.0,87601.0,0.05707664]
[1766785600187,0.07926,87614.0,87604.0,0.011415]
[1766785600389,0.07926,87614.0,87603.0,0.01141513]
[1766785600586,0.07926,87614.0,87602.0,0.01141526]
[1766785600970,0.07926,87614.0,87601.0,0.01141539]
[1766785601196,0.07926,87614.0,87602.0,0.01141526]
[1766785601596,0.07926,87614.0,87600.0,0.45965175]
[1766785602125,0.07926,87614.0,87601.0,0.01141539]
[1766785602431,0.07926,87614.0,87600.0,0.45965175]
[1766785602587,0.07926,87614.0,87601.0,0.01141539]
[1766785602790,0.07926,87614.0,87600.0,0.44823623]
[1766785603611,0.07926,87614.0,87601.0,0.01141539]
[1766785603812,0.07926,87614.0,87600.0,0.45965175]
[1766785604010,0.07926,87614.0,87604.0,0.011415]
[1766785604220,0.01144,87614.0,87605.0,0.05837]
[1766785604841,0.01144,87614.0,87605.0,0.06978487]
[1766785605017,0.01144,87614.0,87606.0,0.05837]
[1766785605207,0.01144,87614.0,87606.0,0.06978474]
[1766785605757,0.01144,87614.0,87606.0,0.05837]
[1766785605907,0.01144,87614.0,87606.0,0.06978474]
[1766785606107,0.01144,87614.0,87606.0,0.05837]
[1766785606308,0.01144,87614.0,87606.0,0.06978474]
[1766785606626,0.01144,87614.0,87606.0,0.05837]
[1766785607027,0.01144,87614.0,87606.0,0.04037]
[1766785612186,0.01139,87614.0,87606.0,0.04037]
[1766785614183,0.01139,87614.0,87605.0,0.00678487]
[1766785614729,0.01139,87614.0,87604.0,0.44823623]
[1766785616445,0.01139,87614.0,87604.0,0.44768723]
[1766785619311,0.01139,87614.0,87601.0,0.01141539]
[1766785619496,0.01139,87614.0,87600.0,0.01141552]
[1766785619707,0.01139,87614.0,87601.0,0.01141539]
[1766785620125,0.01139,87614.0,87602.0,0.01141526]
[1766785620344,0.01139,87614.0,87601.0,0.01141539]
[1766785620557,0.01139,87614.0,87600.0,0.44823623]
[1766785620754,0.01139,87614.0,87600.0,0.45965175]
[1766785621179,0.01139,87614.0,87600.0,0.40665175]
[1766785621396,0.01139,87614.0,87601.0,0.01141539]
[1766785622101,0.01139,87614.0,87602.0,0.01141526]
[1766785622256,0.01139,87614.0,87601.0,0.01141539]
[1766785622414,0.01139,87614.0,87602.0,0.01141526]
[1766785622613,0.01139,87614.0,87603.0,0.01141513]
[1766785622817,0.01139,87614.0,87604.0,0.011415]
[1766785623047,0.00881838,87614.0,87606.0,0.01141474]
[1766785623261,0.00881838,87614.0,87605.0,0.01141487]
[1766785624736,0.00881838,87614.0,87602.0,0.01141526]
[1766785625367,0.00881838,87614.0,87600.0,0.45965175]
[1766785626892,0.00881838,87614.0,87602.0,0.01141526]
[1766785627078,0.00881838,87614.0,87601.0,0.01141539]
[1766785627391,0.00881838,87614.0,87602.0,0.01141526]
[1766785628384,0.00881838,87614.0,87600.0,0.51672906]
[1766785628870,0.00881838,87614.0,87600.0,0.44823623]
[1766785629074,0.00881838,87614.0,87601.0,0.01141539]
[1766785629697,0.00881838,87614.0,87602.0,0.01141526]
[1766785630396,0.00881838,87614.0,87601.0,0.01141539]
[1766785631263,0.00881838,87614.0,87602.0,0.01141526]
[1766785632703,0.00881838,87614.0,87601.0,0.01141539]
[1766785632930,0.00881838,87614.0,87602.0,0.01141526]
[1766785633131,0.00881838,87614.0,87604.0,0.011415]
[1766785634100,0.00881838,87614.0,87605.0,0.01141487]
[1766785634314,0.00881838,87614.0,87604.0,0.011415]
[1766785634523,0.00881838,87614.0,87605.0,0.01141487]
[1766785636061,0.00881838,87614.0,87606.0,0.01141474]
[1766785636221,0.00881838,87614.0,87607.0,0.01141461]
[1766785636422,0.00826938,87614.0,87606.0,0.01141474]
[1766785637340,0.00826938,87614.0,87607.0,0.01141461]
[1766785637684,0.00826938,87614.0,87606.0,0.01141474]
[1766785637897,0.00826938,87614.0,87607.0,0.01141461]
[1766785638321,0.00826938,87614.0,87606.0,0.01141474]
[1766785639070,0.00826938,87614.0,87607.0,0.01141461]
[1766785639915,0.00826938,87614.0,87604.0,0.45965123]
[1766785640115,0.00826938,87614.0,87605.0,0.01141487]
[1766785640321,0.00826938,87614.0,87604.0,0.45965123]
[1766785641495,0.00826938,87614.0,87605.0,0.01141487]
[1766785641844,0.00826938,87614.0,87610.0,0.12756264]
[1766785642462,0.00826938,87614.0,87610.0,0.11256264]
[1766785644351,0.0002,87615.0,87610.0,0.11256264]
[1766785646455,0.0002,87615.0,87609.0,0.01141435]
[1766785646769,0.0002,87615.0,87608.0,0.13897712]
[1766785647277,0.0002,87615.0,87608.0,0.12756264]
[1766785648683,0.0002,87615.0,87609.0,0.01141435]
[1766785648857,0.0002,87615.0,87608.0,0.12756264]
[1766785649648,0.0002,87615.0,87608.0,0.09656264]
[1766785651383,0.0002,87615.0,87608.0,0.09601364]
[1766785655208,0.0002,87615.0,87608.0,0.10742812]
[1766785656372,0.0002,87615.0,87608.0,0.09601364]
[1766785656554,0.0002,87615.0,87608.0,0.10742812]
[1766785657196,0.0002,87615.0,87609.0,0.01141435]
[1766785658388,0.01144,87620.0,87608.0,0.10742812]
[1766785658566,0.01144,87620.0,87609.0,0.01141435]
[1766785659254,0.01144,87620.0,87608.0,0.10742812]
[1766785659468,0.01144,87620.0,87609.0,0.01141435]
[1766785660345,0.01144,87620.0,87609.0,0.01126179]
[1766785660503,0.07131,87622.0,87615.0,0.06848131]
[1766785660709,0.07131,87633.0,87622.0,0.000349]
[1766785660923,0.08282758,87633.0,87617.0,0.01141331]
[1766785661105,0.08282758,87633.0,87616.0,0.01141344]
[1766785661616,0.08282758,87633.0,87615.0,0.01141357]
[1766785661960,0.08282758,87633.0,87616.0,0.01141344]
[1766785662346,0.08282758,87633.0,87616.0,0.01111001]
[1766785662726,0.01141239,87624.0,87603.0,0.06159102]
[1766785662924,0.01141239,87624.0,87593.0,0.08227809]
[1766785662925,0.08272357,87615.0,87597.0,0.0599299]
[1766785663149,0.07131,87613.0,87596.0,0.01151758]
[1766785663358,0.07131,87613.0,87598.0,0.01144]
[1766785663562,0.07131,87612.0,87598.0,0.01144]
[1766785663733,0.08272422,87610.0,87593.0,0.06208093]
[1766785663942,0.07131,87608.0,87594.0,0.01144]
[1766785665454,0.07131,87608.0,87594.0,0.0228563]
[1766785666062,0.06764,87614.0,87597.0,0.01141591]
[1766785666306,0.06764,87614.0,87596.0,0.01141604]
[1766785666440,0.06764,87613.0,87597.0,0.01141591]
[1766785666636,0.06764,87613.0,87598.0,0.01141578]
[1766785666840,0.06764,87613.0,87596.0,0.01141604]
[1766785667095,0.06764,87613.0,87597.0,0.01141591]
[1766785667462,0.06764,87613.0,87598.0,0.01141578]
[1766785667830,0.06764,87613.0,87597.0,0.06849542]
[1766785667831,0.06764,87612.0,87597.0,0.06849542]
[1766785668205,0.06764,87612.0,87598.0,0.01141578]
[1766785668374,0.06764,87612.0,87599.0,0.01141565]
[1766785668788,0.06764,87612.0,87597.0,0.06849537]
[1766785668995,0.06764,87612.0,87598.0,0.01141578]
[1766785669193,0.07668932,87611.0,87598.0,0.01141578]
[1766785669639,0.07668932,87611.0,87597.0,0.01141591]
[1766785669839,0.07668932,87611.0,87598.0,0.01141578]
[1766785672900,0.07668932,87611.0,87597.0,0.01141591]
[1766785673484,0.07668932,87611.0,87598.0,0.01141578]
[1766785674046,0.07668932,87611.0,87597.0,0.01141591]
[1766785674246,0.07668932,87611.0,87598.0,0.01141578]
[1766785674359,0.00995426,87610.0,87596.0,0.01141604]
[1766785674563,0.00995426,87610.0,87597.0,0.01141591]
[1766785674963,0.00995426,87610.0,87598.0,0.01141578]
[1766785675165,0.00995426,87610.0,87597.0,0.01141591]
[1766785675364,0.00995426,87610.0,87598.0,0.01141578]
[1766785675802,0.00995426,87610.0,87597.0,0.01141591]
[1766785676607,0.06764,87611.0,87598.0,0.01141578]
[1766785676770,0.06764,87611.0,87597.0,0.01141591]
[1766785676966,0.06764,87611.0,87593.0,0.06849833]
[1766785677183,0.06764,87611.0,87594.0,0.07993721]
[1766785677396,0.06764,87611.0,87595.0,0.01141617]
[1766785677594,0.08582017,87611.0,87595.0,0.01141617]
[1766785678037,0.06764,87610.0,87596.0,0.01141604]
[1766785679402,0.06764,87610.0,87594.0,0.0228563]
[1766785679854,0.06764,87610.0,87595.0,0.01141617]
[1766785680731,0.06764,87610.0,87594.0,0.0228563]
[1766785680938,0.06764,87610.0,87595.0,0.01141617]
[1766785681137,0.01144,87615.0,87600.0,0.01141552]
[1766785681320,0.01144,87615.0,87605.0,0.12756264]
[1766785681523,0.01144,87615.0,87607.0,0.01141461]
[1766785681886,0.07905161,87630.0,87615.0,0.000349]
[1766785682087,0.01144,87625.0,87611.0,0.01141409]
[1766785682313,0.02934299,87625.0,87609.0,0.01141435]
[1766785682450,0.01144,87625.0,87610.0,0.01141422]
[1766785683465,0.01144,87625.0,87611.0,0.01141409]
[1766785683834,0.01144,87625.0,87614.0,0.0114137]
[1766785684039,0.01144,87625.0,87616.0,0.01141344]
[1766785684277,0.01144,87625.0,87618.0,0.01141317]
[1766785684494,0.01144,87625.0,87617.0,0.01141331]
[1766785684745,0.01144,87625.0,87618.0,0.01141317]
[1766785685296,0.01144,87625.0,87619.0,0.01141304]
[1766785686095,0.01144,87625.0,87618.0,0.01141317]
[1766785686276,0.01144,87625.0,87616.0,0.06848043]
[1766785686277,0.01144,87625.0,87616.0,0.01141344]
[1766785686477,0.06771758,87633.0,87625.0,0.000349]
[1766785686684,0.06771758,87633.0,87620.0,0.44798388]
[1766785686883,0.06771758,87633.0,87617.0,0.05714225]
[1766785687088,0.06771758,87633.0,87621.0,0.12756264]
[1766785690449,0.06771758,87633.0,87621.0,0.12701364]
[1766785690885,0.0791288,87633.0,87621.0,0.12701364]
[1766785691535,0.06771758,87633.0,87621.0,0.12701364]
[1766785693840,0.06771758,87633.0,87618.0,0.01144]
[1766785693989,0.06771758,87633.0,87619.0,0.12756264]
[1766785694389,0.06771758,87633.0,87619.0,0.13897568]
[1766785696863,0.06771758,87633.0,87620.0,0.01141291]
[1766785697220,0.06771758,87633.0,87619.0,0.13897568]
[1766785698408,0.06771758,87633.0,87619.0,0.12756264]
[1766785700894,0.06771758,87633.0,87619.0,0.12197568]
[1766785701080,0.06771758,87633.0,87619.0,0.11056264]
[1766785707664,0.0791288,87633.0,87619.0,0.11056264]
[1766785707823,0.06771758,87633.0,87619.0,0.11056264]
[1766785708027,0.06771758,87633.0,87619.0,0.08956264]
[1766785710252,0.0791288,87633.0,87619.0,0.08956264]
[1766785710674,0.06771758,87633.0,87619.0,0.08956264]
[1766785715133,0.06771758,87633.0,87619.0,0.06856264]
[1766785715704,0.06771758,87633.0,87618.0,0.01144]
[1766785720483,7.758e-05,87633.0,87618.0,0.01144]
[1766785720618,0.07291,87632.0,87618.0,0.01144]
[1766785721186,0.08432135,87632.0,87618.0,0.01144]
[1766785721391,0.07291,87629.0,87618.0,0.01144]
[1766785721590,0.07405164,87629.0,87618.0,0.01144]
[1766785722390,0.07291,87629.0,87618.0,0.01144]
[1766785722890,0.08435,87629.0,87618.0,0.00144]
[1766785724460,0.08435,87629.0,87614.0,0.04115637]
[1766785725059,0.08435,87629.0,87615.0,0.04115637]
[1766785725854,0.08435,87629.0,87615.0,0.05256994]
[1766785727356,0.08435,87629.0,87616.0,0.01141344]
[1766785727586,0.08435,87629.0,87615.0,0.05256994]
[1766785728728,0.08435,87629.0,87615.0,0.06400994]
[1766785729239,0.08435,87629.0,87615.0,0.05259637]
[1766785730089,0.08435,87629.0,87615.0,0.00344]
[1766785730820,0.08435,87629.0,87615.0,0.01485357]
[1766785731024,0.08435,87629.0,87615.0,0.00344]
[1766785734373,0.08435,87629.0,87615.0,0.01485357]
[1766785734538,0.08435,87629.0,87615.0,0.00344]
[1766785735775,0.06988,87614.0,87607.0,0.06166018]
[1766785735976,0.06988,87614.0,87600.0,0.01141552]
[1766785735977,0.08132,87614.0,87600.0,0.0730757]
[1766785736179,0.08132,87614.0,87602.0,0.01141526]
[1766785736527,0.080771,87614.0,87603.0,0.01141513]
[1766785736681,0.01144,87613.0,87604.0,0.011415]
[1766785737357,0.01144,87613.0,87602.0,0.01141526]
[1766785737582,0.01144,87613.0,87605.0,0.01141487]
[1766785737908,0.01144,87613.0,87606.0,0.01141474]
[1766785738118,0.08129174,87629.0,87607.0,0.01141461]
[1766785738319,0.06988,87624.0,87607.0,0.06848709]
[1766785738520,0.06988,87624.0,87607.0,0.01141461]
[1766785738725,0.06988,87624.0,87610.0,0.44788207]
[1766785740212,0.06988,87624.0,87610.0,0.45929629]
[1766785740410,0.06988,87624.0,87610.0,0.44788207]
[1766785741923,0.06988,87624.0,87611.0,0.01141409]
[1766785742131,0.06988,87624.0,87610.0,0.51636712]
[1766785742455,0.01144,87626.0,87616.0,0.01141344]
[1766785742644,0.01144,87626.0,87617.0,0.01141331]
[1766785742864,0.01144,87629.0,87616.0,0.44788207]
[1766785743012,0.01144,87629.0,87620.0,0.44788207]
[1766785744548,0.08132,87629.0,87620.0,0.44788207]
[1766785747079,0.08132,87629.0,87620.0,0.40488207]
[1766785750661,0.06988,87619.0,87611.0,0.01144]
[1766785753169,0.06988,87619.0,87609.0,0.44788207]
[1766785753923,0.06988,87619.0,87609.0,0.45929642]
[1766785754826,0.06988,87619.0,87609.0,0.44788207]
[1766785755528,0.06988,87619.0,87609.0,0.45929642]
[1766785757599,0.06988,87619.0,87610.0,0.01141422]
[1766785757796,0.06988,87619.0,87609.0,0.45929642]
[1766785758201,0.06988,87619.0,87609.0,0.44788207]
[1766785759130,0.06988,87619.0,87609.0,0.38888207]
[1766785759715,0.06988,87619.0,87609.0,0.40029642]
[1766785759899,0.06988,87619.0,87609.0,0.38888207]
[1766785760098,0.06988,87619.0,87609.0,0.40029642]
[1766785763178,0.06988,87619.0,87609.0,0.38888207]
[1766785763383,0.06988,87619.0,87609.0,0.40029642]
[1766785764186,0.06988,87619.0,87609.0,0.01141435]
[1766785764944,0.06988,87619.0,87606.0,0.01144]
[1766785765291,0.06988,87619.0,87608.0,0.01141448]
[1766785765986,0.06988,87619.0,87609.0,0.01141435]
[1766785766838,0.06988,87619.0,87610.0,0.01141422]
[1766785767387,0.06988,87619.0,87609.0,0.01141435]
[1766785767590,0.06988,87619.0,87608.0,0.01141448]
[1766785768270,0.06988,87619.0,87607.0,0.01141461]
[1766785769144,0.06988,87619.0,87609.0,0.01141435]
[1766785769383,0.06988,87619.0,87610.0,0.01141422]
[1766785769618,0.06988,87619.0,87612.0,0.01141396]
[1766785769825,0.01144,87622.0,87613.0,0.06848298]
[1766785770028,0.01144,87622.0,87614.0,0.0114137]
[1766785770245,0.01144,87622.0,87613.0,0.06848298]
[1766785770470,0.01144,87622.0,87613.0,0.01141383]
[1766785770673,0.01144,87622.0,87614.0,0.0114137]
[1766785771755,0.01144,87624.0,87614.0,0.0114137]
[1766785772281,0.01144,87624.0,87612.0,0.01141396]
[1766785772464,0.08045,87624.0,87612.0,0.01141396]
[1766785772648,0.08045,87624.0,87611.0,0.06848417]
[1766785773391,0.08045,87624.0,87611.0,0.04248417]
[1766785773778,0.08045,87624.0,87612.0,0.01141396]
[1766785774301,0.08045,87624.0,87611.0,0.01141409]
[1766785774649,0.08045,87624.0,87610.0,0.01141422]
[1766785774848,0.08045,87624.0,87612.0,0.01141396]
[1766785775257,0.08045,87624.0,87611.0,0.01141409]
[1766785775520,0.08045,87624.0,87605.0,0.01141487]
[1766785775673,0.08045,87624.0,87607.0,0.01141461]
[1766785775875,0.08045,87624.0,87608.0,0.01141448]
[1766785776095,0.08045,87624.0,87609.0,0.01141435]
[1766785776618,0.08045,87624.0,87606.0,0.02285474]
[1766785776780,0.06901,87622.0,87607.0,0.01141461]
[1766785776978,0.06901,87622.0,87608.0,0.01141448]
[1766785777875,0.06901,87622.0,87609.0,0.01141435]
[1766785778099,0.06901,87622.0,87608.0,0.01141448]
[1766785778283,0.06901,87622.0,87609.0,0.01141435]
[1766785778879,0.06901,87622.0,87610.0,0.01141422]
[1766785780738,0.01144,87624.0,87612.0,0.01141396]
[1766785781284,0.01144,87624.0,87613.0,0.01141383]
[1766785782134,0.01144,87624.0,87614.0,0.0114137]
[1766785783203,0.08045,87624.0,87612.0,0.01141396]
[1766785784062,0.08045,87624.0,87613.0,0.01141383]
[1766785784217,0.08045,87624.0,87612.0,0.01141396]
[1766785785564,0.08045,87624.0,87610.0,0.01141422]
[1766785787078,0.08045,87624.0,87611.0,0.01141409]
[1766785787775,0.08045,87624.0,87612.0,0.01141396]
[1766785787980,0.08045,87624.0,87611.0,0.01141409]
[1766785788690,0.08045,87624.0,87612.0,0.01141396]
[1766785789088,0.08045,87624.0,87611.0,0.01141409]
[1766785789508,0.08045,87624.0,87612.0,0.01141396]
[1766785790299,0.08045,87624.0,87613.0,0.01141383]
[1766785790828,0.01141135,87632.0,87611.0,0.01141409]
[1766785790829,0.0688,87631.0,87617.0,0.01141331]
[1766785790966,0.01144,87629.0,87618.0,0.01141317]
[1766785791681,0.01144,87629.0,87617.0,0.01141331]
[1766785791934,0.01144,87629.0,87618.0,0.01141317]
[1766785792476,0.01144,87629.0,87619.0,0.01141304]
[1766785793332,0.0688,87631.0,87619.0,0.01141304]
[1766785793532,7.758e-05,87633.0,87619.0,0.01141304]
[1766785794249,7.758e-05,87633.0,87620.0,0.01141291]
[1766785795808,7.758e-05,87633.0,87621.0,0.01141278]
[1766785796007,7.758e-05,87633.0,87620.0,0.01141291]
[1766785799716,7.758e-05,87633.0,87615.0,0.05706785]
[1766785800294,7.758e-05,87633.0,87618.0,0.01141317]
[1766785800623,7.758e-05,87633.0,87619.0,0.01141304]
[1766785801104,7.758e-05,87633.0,87618.0,0.01141317]
[1766785801455,7.758e-05,87633.0,87619.0,0.01141304]
[1766785801854,7.758e-05,87633.0,87620.0,0.01141291]
[1766785802839,7.758e-05,87633.0,87622.0,0.12756264]
[1766785806715,0.01144,87636.0,87625.0,0.05706096]
[1766785807020,0.01150934,87636.0,87625.0,0.06847322]
[1766785807220,0.01150934,87636.0,87627.0,0.011412]
[1766785807944,0.01150934,87636.0,87626.0,0.01141213]
[1766785808308,0.01150934,87636.0,87625.0,0.01141226]
[1766785808514,0.01150934,87636.0,87626.0,0.01141213]
[1766785809051,0.01150934,87636.0,87624.0,0.01141239]
[1766785809819,0.01150934,87636.0,87625.0,0.01141226]
[1766785810167,0.01150934,87636.0,87622.0,0.12538742]
[1766785810783,0.01150934,87636.0,87623.0,0.01141252]
[1766785811798,0.01150934,87636.0,87624.0,0.01141239]
[1766785812160,0.01150934,87636.0,87622.0,0.13680007]
[1766785812791,0.01150934,87636.0,87623.0,0.01141252]
[1766785813170,0.01150934,87636.0,87625.0,0.01141226]
[1766785813717,0.01150934,87636.0,87623.0,0.01141252]
[1766785813922,0.01150934,87636.0,87622.0,0.16427554]
[1766785814136,0.01150934,87636.0,87623.0,0.01141252]
[1766785814334,0.01150934,87636.0,87625.0,0.01141226]
[1766785814507,0.01150934,87636.0,87624.0,0.01141239]
[1766785815099,0.01150934,87636.0,87625.0,0.01141226]
[1766785815459,0.01150934,87636.0,87627.0,0.011412]
[1766785815650,0.01150934,87636.0,87628.0,0.01141187]
[1766785815838,0.01150934,87636.0,87629.0,0.01141174]
[1766785816407,0.01150934,87636.0,87628.0,0.01141187]
[1766785816827,6.934e-05,87636.0,87628.0,0.01141187]
[1766785817259,6.934e-05,87636.0,87629.0,0.01141174]
[1766785818272,6.934e-05,87636.0,87628.0,0.01141187]
[1766785819498,6.934e-05,87636.0,87627.0,0.011412]
[1766785820013,6.934e-05,87636.0,87628.0,0.01141187]
[1766785820324,6.934e-05,87636.0,87629.0,0.01141174]
[1766785820458,6.934e-05,87636.0,87632.0,0.01141135]
[1766785820657,0.01144,87641.0,87632.0,0.01141135]
[1766785820853,0.01144,87641.0,87631.0,0.06846838]
[1766785820854,0.01144,87641.0,87631.0,0.01141148]
[1766785821978,0.01144,87641.0,87632.0,0.01141135]
[1766785822914,0.01144,87641.0,87633.0,0.01141122]
[1766785823113,0.01144,87641.0,87632.0,0.01141135]
[1766785823345,0.01144,87641.0,87628.0,0.02285187]
[1766785823925,0.01144,87641.0,87630.0,0.44776046]
[1766785824564,0.08461,87641.0,87630.0,0.44776046]
[1766785826779,0.08461,87641.0,87630.0,0.45917207]
[1766785827084,0.08461,87641.0,87630.0,0.44776046]
[1766785828058,0.08461,87641.0,87630.0,0.39276046]
[1766785829504,0.08461,87641.0,87630.0,0.46122972]
[1766785829741,0.08461,87641.0,87631.0,0.01141148]
[1766785830118,0.08461,87641.0,87630.0,0.46122972]
[1766785830451,0.08461,87641.0,87630.0,0.40417207]
[1766785831210,0.08461,87641.0,87631.0,0.01141148]
[1766785832013,0.08461,87641.0,87630.0,0.40417207]
[1766785832527,0.08461,87641.0,87632.0,0.01141135]
[1766785832712,0.01144,87641.0,87632.0,0.06846799]
[1766785832912,0.01144,87641.0,87632.0,0.01141135]
[1766785833315,0.01144,87641.0,87630.0,0.4612298]
[1766785833316,0.01144,87641.0,87630.0,0.40417207]
[1766785833737,0.01144,87641.0,87630.0,0.39276046]
[1766785834577,0.01144,87641.0,87630.0,0.40417207]
[1766785835219,0.01144,87641.0,87630.0,0.35417207]
[1766785836902,0.01144,87641.0,87631.0,0.01141148]
[1766785841559,0.01144,87641.0,87632.0,0.01141135]
[1766785842908,0.01144,87641.0,87630.0,0.38805243]
[1766785843390,0.01144,87641.0,87632.0,0.01141135]
[1766785846467,0.01144,87641.0,87630.0,0.3309949]
[1766785847796,0.01144,87641.0,87631.0,0.01141148]
[1766785848701,0.08627,87641.0,87630.0,0.01141161]
[1766785848940,0.08627,87641.0,87630.0,0.45917207]
[1766785850062,0.08627,87641.0,87630.0,0.43417207]
[1766785850611,0.08627,87641.0,87631.0,0.01141148]
[1766785851160,0.08627,87641.0,87630.0,0.44558368]
[1766785852286,0.08627,87641.0,87631.0,0.01141148]
[1766785854384,0.08627,87641.0,87630.0,0.44558368]
[1766785854969,0.08627,87641.0,87631.0,0.01141148]
[1766785855369,0.08627,87641.0,87630.0,0.44558368]
[1766785856305,0.08627,87641.0,87630.0,0.43417207]
[1766785856482,0.08627,87641.0,87628.0,0.01144]
[1766785856650,0.08627,87641.0,87630.0,0.44776046]
[1766785857057,0.08627,87641.0,87630.0,0.38676046]
[1766785859507,0.08627,87641.0,87628.0,0.02285187]
[1766785859710,0.08627,87641.0,87630.0,0.44776046]
[1766785860302,0.08627,87641.0,87630.0,0.45917207]
[1766785861095,0.08627,87641.0,87631.0,0.01141148]
[1766785861901,0.08627,87641.0,87632.0,0.01141135]
[1766785862099,0.04568,87659.0,87634.0,0.01141109]
[1766785862100,0.01144,87645.0,87634.0,0.01141109]
[1766785862385,4.079e-05,87645.0,87632.0,0.01141135]
[1766785864174,4.079e-05,87645.0,87630.0,0.05705758]
[1766785864426,4.079e-05,87645.0,87630.0,0.50481804]
[1766785864645,4.079e-05,87645.0,87632.0,0.01141135]
[1766785865591,4.079e-05,87645.0,87634.0,0.01141109]
[1766785866202,4.079e-05,87645.0,87635.0,0.01141096]
[1766785867050,4.079e-05,87645.0,87636.0,0.01141083]
[1766785867246,4.079e-05,87645.0,87637.0,0.06846384]
[1766785867413,4.079e-05,87645.0,87638.0,0.01141057]
[1766785867881,4.079e-05,87645.0,87639.0,0.01141044]
[1766785868081,4.079e-05,87645.0,87638.0,0.01141057]
[1766785868282,4.079e-05,87645.0,87636.0,0.01141083]
[1766785868488,4.079e-05,87645.0,87637.0,0.0114107]
[1766785869310,4.079e-05,87645.0,87638.0,0.01141057]
[1766785869560,0.01144,87649.0,87638.0,0.01141057]
[1766785869561,0.00977853,87649.0,87638.0,0.06846339]
[1766785869770,0.00977853,87649.0,87642.0,0.01141005]
[1766785869952,0.07483,87654.0,87639.0,0.4591709]
[1766785871332,0.07483,87654.0,87639.0,0.4261709]
[1766785872100,0.07483,87654.0,87640.0,0.01141031]
[1766785872858,0.07483,87654.0,87641.0,0.01141018]
[1766785873033,0.07483,87654.0,87642.0,0.01141005]
[1766785873459,0.07483,87654.0,87639.0,0.41476046]
[1766785873663,0.07483,87654.0,87639.0,0.4261709]
[1766785873835,0.07483,87654.0,87640.0,0.01141031]
[1766785874225,0.07483,87654.0,87641.0,0.01141018]
[1766785874875,0.07483,87654.0,87642.0,0.01141005]
[1766785875176,0.07483,87654.0,87641.0,0.01141018]
[1766785875878,0.07483,87654.0,87642.0,0.01141005]
[1766785877552,0.07483,87654.0,87643.0,0.01140992]
[1766785877890,0.07483,87654.0,87644.0,0.01140979]
[1766785878048,0.07483,87654.0,87643.0,0.01140992]
[1766785878588,0.07483,87654.0,87642.0,0.06846002]
[1766785879720,0.07483,87654.0,87643.0,0.01140992]
[1766785880882,0.01144,87655.0,87644.0,0.01140979]
[1766785881345,0.01144,87655.0,87642.0,0.01141005]
[1766785881663,0.01144,87655.0,87643.0,0.01140992]
[1766785882184,0.01144,87655.0,87642.0,0.01141005]
[1766785882381,0.01144,87655.0,87643.0,0.01140992]
[1766785882577,0.01144,87655.0,87642.0,0.01141005]
[1766785882791,0.01144,87655.0,87643.0,0.01140992]
[1766785883558,0.01144,87655.0,87639.0,0.48322289]
[1766785883973,0.01144,87655.0,87641.0,0.01141018]
[1766785885202,0.01144,87655.0,87642.0,0.01141005]
[1766785885403,0.01144,87655.0,87641.0,0.01141018]
[1766785885806,0.01144,87655.0,87643.0,0.01140992]
[1766785888441,0.01144,87655.0,87644.0,0.01140979]
[1766785888626,0.01144,87655.0,87643.0,0.01140992]
[1766785889130,0.01144,87655.0,87644.0,0.01140979]
[1766785890049,0.01144,87655.0,87643.0,0.01140992]
[1766785890568,0.01144,87655.0,87644.0,0.01140979]
[1766785890766,0.01144,87655.0,87643.0,0.01140992]
[1766785891367,0.01144,87655.0,87644.0,0.01140979]
[1766785891574,0.01144,87655.0,87643.0,0.01140992]
[1766785892541,0.01144,87655.0,87641.0,0.06628079]